Cogmind - Beta 13 @@@ ROGUE MODE // 2024.06.02 @ 21:35:13 Player: KTG-V3 Result: Destroyed by G-67 Veteran with Field Laser Performance ------------- Evolutions (6) 3000 Regions Visited (17) 3400 Robots Destroyed (334) 1670 Value Destroyed (12796) 12796 Prototype IDs (30) 600 Alien Tech Used (0) 0 Bonus (2905) 2905 TOTAL SCORE: 24371 Bonus ------- Triggered High Security 500 High Alert Combat Kills 2875 Follower Combat Kills 1598 Network Hubs Disabled 400 Met Data Miner 300 Built Enhanced Grunts 300 Met R17 at Cetus 500 Friendly Fire -3568 Cogmind --------- Core Integrity 0/1150 Matter 251/300 Energy 100/100 System Corruption 9% Temperature Cool (0) Movement Core (50) Location -4/Factory Parts ------- > --- POWER (2) -------- (None) > --- PROPULSION (4) --- (None) > --- UTILITY (11) ----- (None) > --- WEAPON (2) ------- (None) > --- INVENTORY (5) ---- Advanced Heat Sink Advanced Energy Well (243) Authchip [Power] Plasma Rifle Hypervelocity Gauss Rifle Peak State ------------ > --- POWER ------------ Fission Core Antimatter Reactor > --- PROPULSION ------- Centrium Heavy Treads Centrium Heavy Treads > --- UTILITY ---------- Improved Cooling System Advanced Cooling System Huge Storage Unit Enhanced Optical Array Medium Regenerative Plating Remote Shield Hacking Suite Improved Hacking Suite Improved System Shield > --- WEAPON ----------- Heavy Gatling Laser Advanced Plasma Cannon > --- INVENTORY -------- Quantum Reactor Heavy Treads Centrium Heavy Treads Advanced Energy Well Matter Compressor Structural Scanner Seismic Detector Transmission Jammer Centrium Medium Armor Plating Centrium Medium Armor Plating Experimental Thermal Shield Remote Shield Improved Hacking Suite Tractor Beam Improved EM Pulse Cannon Cooled Particle Cannon Cooled Particle Cannon Compact Ion Cannon Mini Assault Cannon Mini Assault Cannon Long-range Missile Launcher Long-range Missile Launcher Multitool [Rating: 115] Favorites ----------- Power Reinforced Deuterium Engine Engine Reinforced Deuterium Engine Power Core Light Fission Core Reactor Antimatter Reactor Propulsion Medium Treads Treads Medium Treads Wheel Armored Huge Wheel Utility Huge Storage Unit Device Seismic Detector Storage Huge Storage Unit Processor Advanced Visual Processing Unit Hackware Hacking Suite Protection Improved Medium Armor Plating Weapon Cooled Particle Cannon Energy Gun Subdweller Laser Energy Cannon Cooled Particle Cannon Ballistic Gun Enhanced Autogun Ballistic Cannon Improved Light Cannon Launcher Long-range Missile Launcher Special Weapon Multitool Build | -11 -10 -10 -8 -7 -7 -7 -7 -7 -7 -6 -6 -6 -6 -6 -6 -5 -4 ------- Run | Yrd Mat Sub Mat Fac Was Fac Low Low Dat Pro Fac Ext Cet Arc Hub Fac Fac Slots Evolved 12 | . . . 4 2 . . . . . . 2 . . . . 2 2 Power 1 | . . . . . . . . . . . . . . . . 1 . Propulsion 2 | . . . 1 1 . . . . . . . . . . . . . Utility 9 | . . . 3 1 . . . . . . 2 . . . . 1 2 Weapon . | . . . . . . . . . . . . . . . . . . Parts Attached 577 | 7 13 14 32 2 . 121 25 18 3 21 106 31 21 14 4 116 29 Power 33 | 1 2 . 3 . . 5 . . . . 3 5 3 . . 6 5 Engine 14 | 1 2 . 3 . . 4 . . . . . 2 . . . 2 . Core 11 | . . . . . . 1 . . . . 3 3 1 . . 2 1 Reactor 8 | . . . . . . . . . . . . . 2 . . 2 4 Propulsion 58 | 2 2 3 10 1 . 17 3 1 . . 3 . 3 2 . 8 3 Treads 52 | 2 2 . 10 1 . 17 2 . . . 3 . 3 2 . 8 2 Leg . | . . . . . . . . . . . . . . . . . . Wheel 6 | . . 3 . . . . 1 1 . . . . . . . . 1 Hover . | . . . . . . . . . . . . . . . . . . Flight . | . . . . . . . . . . . . . . . . . . Utility 324 | 2 6 3 13 1 . 56 12 14 1 13 71 21 13 11 3 68 16 Device 241 | 1 2 1 8 1 . 40 12 10 1 11 59 15 3 7 3 53 14 Storage 10 | 1 4 1 . . . 2 . . . . . . 1 . . 1 . Processor 7 | . . . 3 . . 3 . . . . . 1 . . . . . Hackware 6 | . . . . . . 1 . . . . 2 . . 2 . 1 . Protection 60 | . . 1 2 . . 10 . 4 . 2 10 5 9 2 . 13 2 Artifact . | . . . . . . . . . . . . . . . . . . Weapon 162 | 2 3 8 6 . . 43 10 3 2 8 29 5 2 1 1 34 5 Energy Gun 8 | . . 4 1 . . 1 . . . . . . . . . 1 1 Energy Cannon 84 | . . . 1 . . 19 5 2 2 4 20 3 1 . 1 23 3 Ballistic Gun 18 | 2 . 2 4 . . 7 . . . . . . . 1 . 2 . Ballistic Cannon 29 | . 3 2 . . . 13 2 . . 1 7 1 . . . . . Launcher 21 | . . . . . . 3 3 1 . 3 2 . . . . 8 1 Special Weapon 2 | . . . . . . . . . . . . 1 1 . . . . Impact Weapon . | . . . . . . . . . . . . . . . . . . Slashing Weapon . | . . . . . . . . . . . . . . . . . . Piercing Weapon . | . . . . . . . . . . . . . . . . . . Special Melee Weapon . | . . . . . . . . . . . . . . . . . . Unidentified Prototypes 14 | . . . 4 . . 2 . . . . . . 5 1 . 2 . Corrupted Parts 3 | . . . . . . 1 . . . . 2 . . . . . . System Corruption 18 | . . . . . . 3 . . . . 15 . . . . . . Parts Lost 75 | . . 1 2 . 1 8 3 1 . . 6 3 . . . 27 23 Power 12 | . . . 1 . . 2 . . . . 1 1 . . . 4 3 Propulsion 16 | . . 1 . . . 3 3 . . . . . . . . 4 5 Utility 35 | . . . . . . 3 . 1 . . 2 2 . . . 14 13 Weapon 12 | . . . 1 . 1 . . . . . 3 . . . . 5 2 Highest Loss Streak 17 | . . 1 1 . 1 4 1 1 . . 1 2 . . . 3 17 To Critical Strikes 1 | . . . . . . . . . . . 1 . . . . . . Average Slot Usage (%) 90 | . 99 92 91 99 75 90 97 91 77 92 81 78 85 83 85 87 82 Engine 6 | . 14 14 8 7 5 5 7 7 7 7 2 1 . . . 3 . Treads 19 | . 28 23 16 29 22 29 27 15 15 15 7 13 13 13 13 13 14 Wheel 2 | . . 4 8 . . . . 6 7 7 5 . . . . . 1 Device 12 | . 14 7 17 23 17 9 15 10 7 7 12 14 17 10 12 17 28 Storage 7 | . 14 7 9 7 5 6 7 7 7 7 6 6 6 6 6 5 4 Processor 5 | . . . 5 7 5 9 7 7 7 7 6 6 6 6 6 5 5 Hackware 5 | . . . . . . 1 7 7 7 7 12 10 6 9 20 7 4 Protection 8 | . . 6 7 7 5 8 7 11 15 15 8 12 15 16 6 11 1 Energy Gun 1 | . . 14 . . . . . . . . . . . . . . . Energy Cannon 6 | . . . . . . 5 13 14 1 10 9 . 12 6 6 9 9 Ballistic Gun 2 | . 4 3 14 15 11 3 . . . . . . . 5 6 . . Ballistic Cannon 5 | . 23 10 3 . . 4 1 . . 3 3 5 . . . . . Naked Turns 38 | . . . . . 37 . . . . . . . . . . . 1 Heaviest Build 159 | 13 99 99 121 111 111 131 121 130 130 130 136 125 135 135 120 159 135 Greatest Support 160 | 40 46 46 69 86 86 112 112 28 28 28 140 140 160 160 160 160 130 Greatest Overweight (x) 32 | . 2 4 3 1 1 1 4 4 4 4 4 . . 1 . 1 32 Average Overweight (x) 1 | . 1 . 2 1 . . 1 4 4 4 1 . . . . . 5 Largest Inventory Capacity 25 | 8 25 25 25 25 25 25 25 25 25 25 25 25 25 25 25 25 25 Average Capacity 23 | 7 22 16 25 25 18 24 25 25 25 25 25 25 25 25 25 25 24 Most Carried 25 | 8 24 25 25 23 22 25 24 25 25 25 25 25 25 25 25 25 25 Average Carried 21 | 5 17 15 24 22 16 21 23 23 25 24 24 24 24 25 24 21 23 Final Capacity 25 | 8 25 25 25 25 5 25 25 25 25 25 25 25 25 25 25 25 5 Final Carried 25 | 8 24 23 24 22 5 24 22 25 25 25 25 25 25 25 24 25 5 Class Distribution -------------------- 55% | Mutant 20% | Scavenger-Mutant 12% | Hacker-Mutant 5% | Subdweller-Mutant 5% | Commander-Mutant Dominant Class ---------------- Mutant | -10/Materials Mutant | -10/Subcaves Mutant | -8/Materials Mutant | -7/Factory Mutant | -7/Waste Mutant | -7/Factory Mutant | -7/Lower Caves Mutant | -7/Lower Caves Mutant | -7/Data Miner Mutant | -6/Proximity Caves Hacker-Mutant | -6/Factory Commander-Mutant | -6/Extension Commander-Mutant | -6/Cetus Scavenger-Mutant | -6/Archives Scavenger-Mutant | -6/Hub_04(d) Scavenger-Mutant | -5/Factory Scavenger-Mutant | -4/Factory Resources | -11 -10 -10 -8 -7 -7 -7 -7 -7 -7 -6 -6 -6 -6 -6 -6 -5 -4 ----------- Run | Yrd Mat Sub Mat Fac Was Fac Low Low Dat Pro Fac Ext Cet Arc Hub Fac Fac Matter Collected 12513 | 291 532 291 1259 . . 2907 613 283 . 490 1728 996 543 374 72 2005 129 Remotely 4363 | . . . 84 . . 1383 60 . . . 998 348 85 245 . 1160 . Salvage Created 14608 | 125 601 438 1538 28 . 2881 420 421 . 364 1930 992 255 276 144 3766 429 Parts 713 | 11 53 24 74 4 . 159 15 9 . 10 105 41 16 23 7 144 18 Haulers Intercepted 10 | . 2 . 6 . . 1 . . . . . . . . . 1 . Recyclers Shooed 23 | . 2 . 2 . . 5 . . . . 4 1 . . . 9 . Parts Field Recycled . | . . . . . . . . . . . . . . . . . . Retrieved Matter . | . . . . . . . . . . . . . . . . . . Parts Self-Destructed 32 | . . 5 . . . . 14 8 . 5 . . . . . . . Prevented 5 | . . . . . . . 2 . . 3 . . . . . . . Kills | -11 -10 -10 -8 -7 -7 -7 -7 -7 -7 -6 -6 -6 -6 -6 -6 -5 -4 ------- Run | Yrd Mat Sub Mat Fac Was Fac Low Low Dat Pro Fac Ext Cet Arc Hub Fac Fac Combat Hostiles Destroyed 231 | . 12 11 24 . . 47 9 5 . 9 30 10 1 . 2 64 7 Melee 1 | . . . . . . . . . . . . . . . . . 1 Guns 44 | . 8 7 19 . . 5 . . . . . . . . 2 3 . Cannons 123 | . 4 4 5 . . 35 4 4 . . 22 10 1 . . 30 4 AOE 50 | . . . . . . 6 5 1 . 7 6 . . . . 24 1 Classes Destroyed 24 | 3 5 3 . . . 6 2 . . . . 1 . . . 4 . Worker 12 | 1 1 . 1 . . 5 . . . . 3 . . . 1 . . Builder 21 | . . . . . . 12 . . . . 6 1 . . . 2 . Tunneler 7 | 2 . . . 1 . 1 . . . . 1 . . . . 2 . Hauler 10 | . 2 . 6 . . 1 . . . . . . . . . 1 . Recycler 28 | 1 2 . 2 . . 10 . . . . 3 5 . . . 5 . Minesweeper 1 | . . . . . . . 1 . . . . . . . . . . Mechanic 1 | . . . . . . . . . . . . . . . . 1 . Operator 11 | . 1 . . . . 1 . . . . 1 . . 8 . . . Watcher 16 | . 3 . 1 . . 3 . . . . 2 3 . . . 4 . Swarmer 37 | . 6 . 3 . . 2 5 1 . 3 8 . . . . 9 . Saboteur 2 | . . . . . . . . . . . . . . . . 1 1 Grunt 84 | . 6 . 15 . . 27 1 1 . 4 6 3 . . 2 15 4 Brawler 7 | . . . . . . 4 . . . . . . . . . 3 . Duelist 7 | . . . . . . 3 . . . . . . . . . 4 . Protector 2 | . . . . . . . . . . . . . . . . 2 . Sentry 25 | . . 1 6 . . 1 1 1 . 1 5 4 . . . 5 . Specialist 5 | . . . . . . . . . . . . . . . . 5 . Hunter 19 | . . . . . . 1 1 . . 1 4 . . . . 12 . Programmer 28 | . . . . . . 8 1 1 . . 7 2 . . . 7 2 Heavy 1 | . . . . . . 1 . . . . . . . . . . . Behemoth 2 | . . . . . . . . . . . . 1 . . . 1 . Cetus Guard 1 | . . . . . . . . . . . . . 1 . . . . Enhanced Grunt 1 | . . . . . . . . . . . . . 1 . . . . Artisan 1 | . . 1 . . . . . . . . . . . . . . . Subdweller 10 | . . 10 . . . . . . . . . . . . . . . Packrat 1 | . . . . . . . 1 . . . . . . . . . . Samaritan 3 | . . . . . . . 1 2 . . . . . . . . . Savage 1 | . . . . . . . . 1 . . . . . . . . . Best Kill Streak 10 | 3 4 2 3 1 . 7 4 2 . 4 8 6 1 7 1 10 2 Combat Bots Only 8 | . 3 2 3 . . 4 4 2 . 4 7 2 1 . 1 8 2 Max Kills in Single Turn 5 | 1 2 1 1 1 . 3 3 1 . 2 4 1 1 1 1 5 1 Gunslinging 1 | . 1 . . . . . . . . . . . . . . . . Exploded 4 | . . . . . . 2 3 1 . 2 3 . . . . 4 1 Melee 1 | . . . . . . . . . . . . . . . . . 1 Uniques/NPCs Destroyed 1 | . . . . . . . . . . . . . 1 . . . . A7 (-6/Cetus) Combat | -11 -10 -10 -8 -7 -7 -7 -7 -7 -7 -6 -6 -6 -6 -6 -6 -5 -4 -------- Run | Yrd Mat Sub Mat Fac Was Fac Low Low Dat Pro Fac Ext Cet Arc Hub Fac Fac Hostile Shots Fired 2215 | . 60 61 138 . 3 382 100 23 . 36 269 233 . 4 68 613 225 Missed 559 | . 20 10 41 . 2 91 32 8 . 14 69 68 . . 19 127 58 Damage Taken 25318 | . 404 1113 1211 . 38 4443 656 126 . 332 2468 1528 14 156 819 8585 3425 Core 2598 | . 32 174 80 . . 336 27 10 . 71 163 62 . . 61 416 1166 Absorbed by Shields 1241 | . . . 256 . . 163 68 37 . 59 155 . 14 . . 396 93 Reduced by Siege Mode 432 | . . . . . . . . . . . 28 80 . . . 260 64 Ignored by Resistances 884 | . . . . . . 106 . . . 60 . . . . . 718 . Regen/Repaired (Parts) 3022 | . 49 . 182 . . 514 . . . . 377 . 73 62 26 1659 80 Core Remaining (%) 60 | 100 . 17 85 . . . . . . 36 . . . . 66 58 . Volleys Fired 1114 | 19 53 47 121 3 . 223 55 24 . 38 139 65 33 55 13 203 23 Largest 2 | 2 2 2 2 2 . 2 2 2 . 2 2 2 2 2 2 2 2 Hottest 188 | 40 78 120 69 50 . 138 96 60 . 69 110 110 110 110 115 188 180 Shots Fired 1878 | 38 106 88 243 6 . 404 78 48 . 49 224 67 60 64 22 339 42 Gun 570 | 38 78 59 218 6 . 90 . . . . . . . 42 9 30 . Cannon 1230 | . 28 29 25 . . 310 71 47 . 41 222 57 45 22 13 278 42 Launcher 53 | . . . . . . 4 7 1 . 8 2 . . . . 31 . Special 25 | . . . . . . . . . . . . 10 15 . . . . Kinetic 867 | 38 106 39 243 6 . 226 11 . . 3 59 55 . 42 9 30 . Thermal 864 | . . 49 . . . 153 56 47 . 32 127 12 60 22 13 255 38 Explosive 53 | . . . . . . 4 7 1 . 8 2 . . . . 31 . Electromagnetic 94 | . . . . . . 21 4 . . 6 36 . . . . 23 4 Robot Hit Streak 30 | 8 12 16 17 11 . 11 14 14 . 6 15 21 9 12 3 30 20 Robot Miss Streak 5 | 1 3 3 3 1 . 4 4 2 . 2 5 2 5 4 4 3 2 Penetration Max 1 | . . . . . . 1 . . . . . . . 1 1 1 . Secondary Targets 6 | . 2 1 1 . . 2 . . . . . . . . . . . Max Gunslinging Chain 1 | . 1 1 1 . . 1 . . . . . . . . . . . Capacitor 4 | . . . . . . . . . . . . . . . . . 4 Shots Hit Robots 1189 | 30 66 65 166 4 . 251 23 28 . 11 129 53 37 34 8 251 33 Core Hits 589 | 9 36 20 57 1 . 114 21 11 . 13 63 24 12 15 5 172 16 Critical Kills 14 | . . . 1 . . 1 . . . . . . 2 5 . 5 . Critical Parts Destroyed 9 | . 2 . . . . 1 . . . . . . . . 1 5 . Critical Strikes 42 | . 2 . 4 . . 9 1 . . . 2 5 2 5 1 11 . Meltdown 5 | . . . . . . . . . . . . . 2 1 . 2 . Destroy 19 | . 2 . 2 . . 2 . . . . . . . 4 1 8 . Blast 17 | . . . 2 . . 7 1 . . . 2 5 . . . . . Corrupt 1 | . . . . . . . . . . . . . . . . 1 . Melee Attacks . | . . . . . . . . . . . . . . . . . . Impact . | . . . . . . . . . . . . . . . . . . Slashing . | . . . . . . . . . . . . . . . . . . Piercing . | . . . . . . . . . . . . . . . . . . Sneak Attacks . | . . . . . . . . . . . . . . . . . . Combat Hostiles . | . . . . . . . . . . . . . . . . . . Follow-up Attacks . | . . . . . . . . . . . . . . . . . . Damage Inflicted 38948 | 248 847 1263 2984 69 . 7620 1133 838 . 958 4650 2640 847 987 321 11934 1609 Guns 6380 | 248 450 863 2654 69 . 1072 . . . . . . . 633 160 231 . Cannons 23375 | . 397 400 304 . . 5708 631 775 . 286 3994 2482 788 354 129 6109 1018 Explosions 8952 | . . . . . . 840 502 63 . 672 653 96 . . . 5583 543 Melee . | . . . . . . . . . . . . . . . . . . Ramming 120 | . . . 26 . . . . . . . 3 . . . 32 11 48 Kinetic 12429 | 248 847 540 2958 69 . 3401 134 . . . 778 2430 . 633 160 231 . Thermal 16340 | . . 723 . . . 3039 495 775 . 164 2454 210 847 354 129 5700 1450 Explosive 7783 | . . . . . . 543 411 63 . 672 565 . . . . 5529 . Electromagnetic 2276 | . . . . . . 637 93 . . 122 850 . . . . 463 111 Impact . | . . . . . . . . . . . . . . . . . . Slashing . | . . . . . . . . . . . . . . . . . . Piercing . | . . . . . . . . . . . . . . . . . . Highest Corruption 24 | . . . 4 . . 10 11 13 13 13 24 24 24 24 12 10 9 Average Corruption 11 | . . . 3 . . 5 10 12 13 13 17 24 24 14 5 6 3 Corruption Purged 19 | . . . . . . . . . . . . . . 19 . . . Corruption Blocked . | . . . . . . . . . . . . . . . . . . Effects 700 | . . . 44 . . 102 90 48 5 79 104 75 41 34 24 49 5 Message Errors 160 | . . . 10 . . 27 16 15 1 14 25 12 11 7 7 14 1 Matter Fused 156 | . . . 9 . . 17 24 9 1 21 28 16 7 8 3 10 3 Heat Flow Errors 80 | . . . 4 . . 12 10 6 . 9 13 9 4 5 2 6 . Energy Discharges 93 | . . . 4 . . 22 15 6 1 10 9 11 4 3 5 2 1 Parts Rejected 6 | . . . . . . 1 . 1 . . 1 . . . . 3 . Parts Fused 11 | . . . . . . 3 . 1 1 1 1 2 1 1 . . . Data Loss (minor) 89 | . . . 6 . . 10 13 6 1 10 9 15 6 4 5 4 . Data Loss (major) 40 | . . . 5 . . 4 5 . . 4 10 6 1 . 2 3 . Misfires 30 | . . . 3 . . 3 5 2 . 7 4 2 2 1 . 1 . Alerts 10 | . . . 1 . . 1 . 1 . 2 1 . 1 1 . 2 . Misdirections 3 | . . . . . . . . . . . 1 1 1 . . . . Weapon Failures 22 | . . . 2 . . 2 2 1 . 1 2 1 3 4 . 4 . Overload Shots 2 | . . . . . . . . . . . . . . . . 2 . Overflow Damage 1147 | . . . . . . 331 61 76 . . 189 143 . . . 214 133 Projectiles 839 | . . . . . . 235 42 76 . . 170 143 . . . 139 34 Explosions 307 | . . . . . . 96 19 . . . 19 . . . . 74 99 Melee 1 | . . . . . . . . . . . . . . . . 1 . Knockbacks 54 | . 4 5 3 . . 23 2 . . . 10 7 . . . . . Impact 1 | . . . 1 . . . . . . . . . . . . . . Kinetic 51 | . 4 5 2 . . 23 2 . . . 8 7 . . . . . Secondary 2 | . . . . . . . . . . . 2 . . . . . . Self-Inflicted Damage 523 | . . . . . . 111 70 . . 38 23 . . . . 96 185 Shots 11 | . . . . . . 1 2 . . 1 1 . . . . 4 2 Rammed 17 | . . . 2 . . . . . . . 1 . . . 3 1 10 Targets Rammed 17 | . . . 2 . . . . . . . 1 . . . 3 1 10 Kicked . | . . . . . . . . . . . . . . . . . . Crushed . | . . . . . . . . . . . . . . . . . . Highest Temperature 369 | . 27 78 286 . . 309 267 235 . 240 307 262 120 236 262 369 199 Average Temperature 72 | . 11 27 78 . . 77 100 65 . 73 64 68 45 84 64 78 108 Received Heat Transfer 6644 | . 147 171 603 . . 1730 24 39 . 45 353 477 . 18 69 2038 930 Effects 4 | . . . 1 . . 2 . . . . 1 . . . . . . Energy Bleed 4 | . . . 1 . . 2 . . . . 1 . . . . . . Siege Activations 42 | . . . . . . . . . . . 7 7 1 2 2 22 1 Total Turns 625 | . . . . . . . . . . . 109 70 17 9 2 405 13 Longest Duration 40 | . . . . . . . . . . . 32 30 17 7 1 40 13 Robots Corrupted 6 | . . . . . . 1 . . . 1 2 . . . . 2 . Combat Hostiles 5 | . . . . . . 1 . . . 1 1 . . . . 2 . Parts Fried 22 | . . . . . . 3 . . . . 11 . . . . 8 . Impact Corruptions 1 | . . . . . . . . . . . . . . . . 1 . Robots Melted 12 | . . . . . . . . . . 1 1 . 2 1 . 6 1 Combat Hostiles 8 | . . . . . . . . . . 1 1 . . . . 5 1 Parts Melted 50 | . . . . . . 5 1 1 . 1 3 1 12 5 . 20 1 Heat Transferred 21453 | . . 875 . . . 4091 605 1036 . 222 3310 243 941 609 250 7746 1525 Parts Sabotaged 7 | . . . . . . . . . . . . . . . . 4 3 Parts Stolen . | . . . . . . . . . . . . . . . . . . Parts Stripped . | . . . . . . . . . . . . . . . . . . Power Chain Reactions 5 | . . . . . . 1 1 . . . 2 . . . . . 1 Alert | -11 -10 -10 -8 -7 -7 -7 -7 -7 -7 -6 -6 -6 -6 -6 -6 -5 -4 ------- Run | Yrd Mat Sub Mat Fac Was Fac Low Low Dat Pro Fac Ext Cet Arc Hub Fac Fac Peak Influence 1782 | 20 180 . 306 142 69 1048 . . . . 748 500 278 287 516 1782 1196 Initial 1100 | . 13 . . 137 49 48 . . . . . 319 216 16 30 220 1100 Average 323 | 8 43 . 140 137 47 317 . . . . 312 279 154 168 309 851 1090 Maximum Alert Level 5 | . . . 1 . . 3 . . . . 3 2 1 1 2 5 4 Low Security (%) 51 | 100 100 . 74 100 100 52 . . . . 37 37 50 54 17 4 . Level 1 21 | . . . 25 . . 15 . . . . 25 49 49 45 71 20 . Level 2 12 | . . . . . . 16 . . . . 32 13 . . 10 24 . Level 3 7 | . . . . . . 15 . . . . 4 . . . . 14 30 Level 4 4 | . . . . . . . . . . . . . . . . 22 70 Level 5 1 | . . . . . . . . . . . . . . . . 8 . High Security . | . . . . . . . . . . . . . . . . 5 . Max Security . | . . . . . . . . . . . . . . . . . . Squads Dispatched 68 | . 2 . 4 . . 17 . . . . 12 2 . . 2 24 5 Investigation 11 | . 1 . 2 . . 2 . . . . 3 1 . . 1 . 1 Extermination 16 | . . . . . . 8 . . . . 5 . . . . 2 1 Reinforcement 20 | . 1 . 2 . . 5 . . . . 3 1 . . 1 7 . Assault 15 | . . . . . . 2 . . . . 1 . . . . 9 3 Garrison 6 | . . . . . . . . . . . . . . . . 6 . Intercept . | . . . . . . . . . . . . . . . . . . Searches Triggered . | . . . . . . . . . . . . . . . . . . Data Miner Redirects 1 | . . . . . . . . . . . . . . . . . 1 Construction Impeded 8 | . . . 1 . . 2 . . . . 2 . . . . 3 . Haulers Reinforced 1 | . . . . . . . . . . . . . . . . 1 . Active Scanning Responses . | . . . . . . . . . . . . . . . . . . Cargo Convoy Interrupts 2 | . . . . . . 1 . . . . . . . . . 1 . Stealth | -11 -10 -10 -8 -7 -7 -7 -7 -7 -7 -6 -6 -6 -6 -6 -6 -5 -4 --------- Run | Yrd Mat Sub Mat Fac Was Fac Low Low Dat Pro Fac Ext Cet Arc Hub Fac Fac Distress Signals 10 | . . . 2 . . 1 . . . . . 1 2 . 1 3 . Communications Jammed 141 | . . . . . . 13 . . . . 30 . 81 . . 17 . Distress Signals 141 | . . . . . . 13 . . . . 30 . 81 . . 17 . Times Spotted 398 | . 24 12 35 . 5 62 10 4 . 11 39 20 9 25 30 96 16 Peak Tracking Total 14 | . 4 2 4 . 5 6 4 2 . 4 5 5 5 2 12 14 9 Tactical Retreats 6 | . . . 1 . . . 1 . . 1 2 . . . . 1 . Traps | -11 -10 -10 -8 -7 -7 -7 -7 -7 -7 -6 -6 -6 -6 -6 -6 -5 -4 ------- Run | Yrd Mat Sub Mat Fac Was Fac Low Low Dat Pro Fac Ext Cet Arc Hub Fac Fac Traps Triggered 13 | . . 1 2 1 . 6 . . . . 2 . . . . 1 . Indirectly . | . . . . . . . . . . . . . . . . . . Trap Hack Attempts . | . . . . . . . . . . . . . . . . . . Triggered . | . . . . . . . . . . . . . . . . . . Disarmed . | . . . . . . . . . . . . . . . . . . Reprogrammed . | . . . . . . . . . . . . . . . . . . Reused . | . . . . . . . . . . . . . . . . . . Traps Extracted . | . . . . . . . . . . . . . . . . . . Installed . | . . . . . . . . . . . . . . . . . . Triggered 4 | . . . . . . 3 1 . . . . . . . . . . Machines | -11 -10 -10 -8 -7 -7 -7 -7 -7 -7 -6 -6 -6 -6 -6 -6 -5 -4 ---------- Run | Yrd Mat Sub Mat Fac Was Fac Low Low Dat Pro Fac Ext Cet Arc Hub Fac Fac Machines Disabled 34 | . 2 . 1 . . 4 . . . . 2 4 . 3 3 13 2 Max in Single Turn 3 | . 1 . 1 . . 1 . . . . 1 3 . 1 1 3 2 Garrison Access 4 | . . . . . . . . . . . . . . . 1 2 1 Network Hub 2 | . . . . . . . . . . . . . . . 2 . . Energy Cycler 2 | . . . . . . . . . . . . 2 . . . . . Machines Repaired . | . . . . . . . . . . . . . . . . . . Machines Dismantled . | . . . . . . . . . . . . . . . . . . Machines Sabotaged 1 | . . . . . . . . . . . . . . . 1 . . Overloaded Fab Kills . | . . . . . . . . . . . . . . . . . . Hacking | -11 -10 -10 -8 -7 -7 -7 -7 -7 -7 -6 -6 -6 -6 -6 -6 -5 -4 --------- Run | Yrd Mat Sub Mat Fac Was Fac Low Low Dat Pro Fac Ext Cet Arc Hub Fac Fac Machines Accessed 58 | . 10 1 5 1 . 10 . . 4 . 10 2 3 . 6 5 1 Terminals 32 | . 7 . 2 1 . 7 . . . . 5 2 3 . 5 . . Fabricators 5 | . . . . . . 1 . . . . 2 . . . . 1 1 Repair Stations 8 | . 1 . 2 . . 2 . . . . 2 . . . . 1 . Recycling Units 2 | . 2 . . . . . . . . . . . . . . . . Scanalyzers 3 | . . . 1 . . . . . . . 1 . . . . 1 . Garrison Access 3 | . . . . . . . . . . . . . . . 1 2 . Total Hacks 185 | . 35 2 17 1 . 24 . . 29 . 30 5 8 . 18 13 3 Successful 103 | . 15 2 9 . . 11 . . 29 . 16 3 1 . 10 5 2 Failed 80 | . 19 . 8 1 . 12 . . . . 14 2 7 . 8 8 1 Catastrophic 15 | . 5 . 1 1 . 3 . . . . 1 . 2 . 1 1 . Database Lockouts 2 | . 1 . . . . 1 . . . . . . . . . . . Manual 38 | . 9 . 3 . . 8 . . . . 4 1 2 . 10 . 1 Terminals 92 | . 27 . 7 1 . 15 . . . . 12 5 8 . 17 . . Fabricators 15 | . . . . . . 2 . . . . 6 . . . . 4 3 Repair Stations 26 | . 2 . 7 . . 7 . . . . 7 . . . . 3 . Recycling Units 6 | . 6 . . . . . . . . . . . . . . . . Scanalyzers 10 | . . . 3 . . . . . . . 5 . . . . 2 . Garrison Access 5 | . . . . . . . . . . . . . . . 1 4 . Terminal Hacks 62 | . 13 2 1 . . 4 . . 29 . 3 3 1 . 6 . . Record 14 | . . 2 . . . . . . 11 . . . 1 . . . . Part Schematic 13 | . 1 . . . . 2 . . 10 . . . . . . . . Robot Schematic 5 | . . . . . . . . . 5 . . . . . . . . Prototype ID Bank 6 | . 2 . . . . . . . 3 . 1 . . . . . . Level Access Points 1 | . . . . . . . . . . . . . . . 1 . . Branch Access Points 3 | . 1 . 1 . . 1 . . . . . . . . . . . Emergency Access Points 2 | . 1 . . . . . . . . . . . . . 1 . . Terminal Index 2 | . 1 . . . . . . . . . . 1 . . . . . Fabricator Index 1 | . . . . . . . . . . . 1 . . . . . . Unreport Threat 4 | . . . . . . 1 . . . . . 1 . . 2 . . Locate Traps 4 | . 2 . . . . . . . . . . 1 . . 1 . . Dispatch Records 1 | . 1 . . . . . . . . . . . . . . . . Security Status 1 | . 1 . . . . . . . . . . . . . . . . Patrol Status 1 | . 1 . . . . . . . . . . . . . . . . Recall Investigation 1 | . . . . . . . . . . . 1 . . . . . . Registered Components 1 | . 1 . . . . . . . . . . . . . . . . Zone Layout 2 | . 1 . . . . . . . . . . . . . 1 . . Fabricator Hacks 7 | . . . . . . 2 . . . . 4 . . . . . 1 Load Schematic 4 | . . . . . . 1 . . . . 2 . . . . . 1 Build 3 | . . . . . . 1 . . . . 2 . . . . . . Repair Station Hacks 19 | . 2 . 6 . . 4 . . . . 5 . . . . 2 . Scan Component 10 | . 1 . 3 . . 2 . . . . 3 . . . . 1 . Repair 9 | . 1 . 3 . . 2 . . . . 2 . . . . 1 . Recycling Unit Hacks . | . . . . . . . . . . . . . . . . . . Scanalyzer 6 | . . . 1 . . . . . . . 3 . . . . 2 . Insert Component 4 | . . . 1 . . . . . . . 2 . . . . 1 . Analyze 2 | . . . . . . . . . . . 1 . . . . 1 . Garrison Access Hacks 2 | . . . . . . . . . . . . . . . 1 1 . Seal Access 2 | . . . . . . . . . . . . . . . 1 1 . Unauthorized Hacks 7 | . . . 1 . . 1 . . . . 1 . . . 3 . 1 Terminals 5 | . . . 1 . . 1 . . . . . . . . 3 . . Assimilate 1 | . . . . . . . . . . . . . . . 1 . . Botnet 3 | . . . 1 . . 1 . . . . . . . . 1 . . Sabotage 1 | . . . . . . . . . . . . . . . 1 . . Fabricators 2 | . . . . . . . . . . . 1 . . . . . 1 Prioritize 1 | . . . . . . . . . . . 1 . . . . . . Recompile 1 | . . . . . . . . . . . . . . . . . 1 Repair Stations . | . . . . . . . . . . . . . . . . . . Recycling Units . | . . . . . . . . . . . . . . . . . . Scanalyzers . | . . . . . . . . . . . . . . . . . . Garrison Access . | . . . . . . . . . . . . . . . . . . Data Cores Recovered . | . . . . . . . . . . . . . . . . . . Used . | . . . . . . . . . . . . . . . . . . Hacking Detections 46 | . 9 . 5 1 . 9 . . . . 10 2 3 . 4 3 . Full Trace Events 11 | . 3 . 2 . . 2 . . . . 3 1 . . . . . Feedback Events 2 | . . . . . . . . . . . 2 . . . . . . Corruption 1 | . . . . . . . . . . . 1 . . . . . . Hackware Fried 1 | . . . . . . . . . . . 1 . . . . . . Feedback Blocked . | . . . . . . . . . . . . . . . . . . Robot Schematics Acquired 5 | . . . . . . . . . 5 . . . . . . . . Robots Built . | . . . . . . . . . . . . . . . . . . Authchips . | . . . . . . . . . . . . . . . . . . Time . | . . . . . . . . . . . . . . . . . . Total Robot Build Rating . | . . . . . . . . . . . . . . . . . . Part Schematics Acquired 14 | . 1 . . . . 2 . . 10 . 1 . . . . . . Parts Built 5 | . . . . . . 1 . . . . 4 . . . . . . Authchips . | . . . . . . . . . . . . . . . . . . Time 142 | . . . . . . 36 . . . . 106 . . . . . . Total Part Build Rating 27 | . . . . . . 3 . . . . 24 . . . . . . Parts Repaired 9 | . 1 . 3 . . 2 . . . . 2 . . . . 1 . Time 325 | . 32 . 90 . . 29 . . . . 66 . . . . 108 . Parts Recycled . | . . . . . . . . . . . . . . . . . . Recycled Matter . | . . . . . . . . . . . . . . . . . . Retrieved Matter . | . . . . . . . . . . . . . . . . . . Retrieved Components . | . . . . . . . . . . . . . . . . . . Parts Scanalyzed 2 | . . . 1 . . . . . . . . . . . . 1 . Part Schematics Acquired 1 | . . . . . . . . . . . 1 . . . . . . Parts Damaged 1 | . . . 1 . . . . . . . . . . . . . . Bothacking | -11 -10 -10 -8 -7 -7 -7 -7 -7 -7 -6 -6 -6 -6 -6 -6 -5 -4 ------------ Run | Yrd Mat Sub Mat Fac Was Fac Low Low Dat Pro Fac Ext Cet Arc Hub Fac Fac Used RIF Installer . | . . . . . . . . . . . . . . . . . . Robots Hacked . | . . . . . . . . . . . . . . . . . . Non-combat . | . . . . . . . . . . . . . . . . . . Combat . | . . . . . . . . . . . . . . . . . . Robot Hacks Applied . | . . . . . . . . . . . . . . . . . . Relay Couplers Released 7 | . . . . . . . . . . . . . . . . 5 2 Machine Destruction 4 | . . . . . . . . . . . . . . . . 2 2 Programmers 3 | . . . . . . . . . . . . . . . . 3 . Fabnet Peak Effective % . | . . . . . . . . . . . . . . . . . . Robots Rewired 15 | . . . . . . . . . . . . 15 . . . . . Allies Hacked 1 | . . . . . . . . . . . . 1 . . . . . Hacks Repelled . | . . . . . . . . . . . . . . . . . . Allies | -11 -10 -10 -8 -7 -7 -7 -7 -7 -7 -6 -6 -6 -6 -6 -6 -5 -4 -------- Run | Yrd Mat Sub Mat Fac Was Fac Low Low Dat Pro Fac Ext Cet Arc Hub Fac Fac Total Allies 36 | . . . . . . . . . . . 3 28 5 . . . . Largest Group 21 | . . . . . . . . . . . 3 21 21 7 5 . . Highest-Rated Group 1011 | . . . . . . . . . . . 93 748 1011 395 336 . . Highest-Rated Ally 159 | . . . . . . . . . . . 31 159 159 96 96 . . Total Orders 5 | . . . . . . . . . . . . . . 3 2 . . STAY 3 | . . . . . . . . . . . . . . 1 2 . . FOLLOW 2 | . . . . . . . . . . . . . . 2 . . . Ally Attacks 301 | . . . . . . . . . . . 6 99 102 35 59 . . Total Damage 7951 | . . . . . . . . . . . 83 1974 2727 1231 1936 . . Kills 44 | . . . . . . . . . . . . 12 10 5 17 . . Allies Corrupted 1 | . . . . . . . . . . . . . . . 1 . . Allies Melted 2 | . . . . . . . . . . . . . 2 . . . . Intel | -11 -10 -10 -8 -7 -7 -7 -7 -7 -7 -6 -6 -6 -6 -6 -6 -5 -4 ------- Run | Yrd Mat Sub Mat Fac Was Fac Low Low Dat Pro Fac Ext Cet Arc Hub Fac Fac Robot Analysis Total . | . . . . . . . . . . . . . . . . . . Derelict Logs Recovered 5 | . . . . . . . 3 1 . 1 . . . . . . . Drone Launches . | . . . . . . . . . . . . . . . . . . Drone Recoveries . | . . . . . . . . . . . . . . . . . . Exploration | -11 -10 -10 -8 -7 -7 -7 -7 -7 -7 -6 -6 -6 -6 -6 -6 -5 -4 ------------- Run | Yrd Mat Sub Mat Fac Was Fac Low Low Dat Pro Fac Ext Cet Arc Hub Fac Fac Turns Passed 28585 | 195 3423 2315 1815 255 123 4875 2423 1391 150 1899 2840 1506 758 697 751 2589 580 Spaces Moved 11088 | 80 1155 963 675 101 105 1688 933 774 91 971 958 713 260 279 406 760 176 Core 76 | 3 . . . . 70 . . . . . . . . . . . 3 Treads 8133 | 77 1155 681 251 101 35 1688 932 . . . 696 713 260 279 406 760 99 Legs . | . . . . . . . . . . . . . . . . . . Wheels 2879 | . . 282 424 . . . 1 774 91 971 262 . . . . . 74 Hover . | . . . . . . . . . . . . . . . . . . Flight . | . . . . . . . . . . . . . . . . . . Fastest Speed 50 | 50 160 110 130 240 50 160 160 160 160 160 160 160 160 160 160 160 50 Average Speed 200 | 155 272 195 176 240 113 223 239 160 160 160 203 160 160 160 160 204 249 Slowest Speed 1650 | 160 320 320 320 240 240 240 240 160 160 160 240 160 160 240 160 246 1650 Overloaded Moves . | . . . . . . . . . . . . . . . . . . Propulsion Burnouts . | . . . . . . . . . . . . . . . . . . Robots Hopped . | . . . . . . . . . . . . . . . . . . Cave-ins Triggered . | . . . . . . . . . . . . . . . . . . Exploration Rate (%) 56 | 6 98 41 46 4 69 36 96 89 72 92 25 87 73 94 53 30 6 Regions Visited 17 Branch Regions 9 Pre-discovered Areas 1 | . . . . . . . . . 1 . . . . . . . . Known Exits Taken 4 | . . . . . . 1 . . . 1 1 . . . 1 . . Unknown Exits Taken 11 | 1 1 1 1 . . . 1 1 1 . . 1 1 1 . 1 . Scrap Searched 10 | . . . . . . . 2 4 . 4 . . . . . . . Spaces Dug 84 | . . . . . . 4 17 16 . 24 6 . . . 1 16 . Terrain Destroyed 746 | . 3 . 10 . . 117 96 25 . 102 80 43 1 17 4 225 23 Melee . | . . . . . . . . . . . . . . . . . . Projectile 205 | . 3 . 10 . . 48 17 12 . 11 31 11 1 17 4 36 4 AOE 541 | . . . . . . 69 79 13 . 91 49 32 . . . 189 19 Terrain Rammed . | . . . . . . . . . . . . . . . . . . Walls Destroyed . | . . . . . . . . . . . . . . . . . . Machines Disabled . | . . . . . . . . . . . . . . . . . . Actions | -11 -10 -10 -8 -7 -7 -7 -7 -7 -7 -6 -6 -6 -6 -6 -6 -5 -4 --------- Run | Yrd Mat Sub Mat Fac Was Fac Low Low Dat Pro Fac Ext Cet Arc Hub Fac Fac Total 15597 | 117 1360 1310 1145 112 108 2412 1031 876 95 1265 1597 983 549 458 483 1417 279 Wait 2163 | 2 84 231 248 6 2 240 17 47 . 230 333 79 200 103 55 276 10 Move 11072 | 79 1154 962 674 101 104 1687 932 773 90 970 957 712 259 278 405 759 176 Hop . | . . . . . . . . . . . . . . . . . . Pick Up 267 | 9 30 30 28 . 1 79 1 7 . 3 19 6 11 1 . 31 11 Fast Attach 159 | 7 4 5 12 . . 26 . 5 2 . 20 11 11 9 3 32 12 Attach 102 | . . 4 8 2 . 20 3 3 . 2 10 7 3 . . 29 11 Detach 29 | . . . 2 . . 9 1 . . . 3 2 1 . . 7 4 Swap 318 | . 9 5 14 . . 75 22 10 1 19 76 13 7 5 1 55 6 Drop 262 | 1 26 17 36 . 1 49 . 7 2 3 31 15 24 7 3 24 16 Fire 1114 | 19 53 47 121 3 . 223 55 24 . 38 139 65 33 55 13 203 23 Melee . | . . . . . . . . . . . . . . . . . . Ram 9 | . . . . . . . . . . . . . . . . . 9 Kick . | . . . . . . . . . . . . . . . . . . Crush 8 | . . . 2 . . . . . . . 1 . . . 3 1 1 Escape Stasis 12 | . . . . . . 4 . . . . 8 . . . . . . Rewire 73 | . . . . . . . . . . . . 73 . . . . . Trap . | . . . . . . . . . . . . . . . . . . Miscellaneous 9 | . . 9 . . . . . . . . . . . . . . . Route ------- -11/Scrapyard -10/Materials (discovered 6 exits: [*Mat x3] / *Min x2 / *Sub) -10/Subcaves -8/Materials -7/Factory -7/Waste -7/Factory (discovered 5 exits: *Fac / Sto x2 / *Low x2) -7/Lower Caves -7/Lower Caves (discovered 2 exits: *Fac / *Dat) -7/Data Miner -6/Proximity Caves -6/Factory (discovered 4 exits: *Fac / *Low / *Ext x2) -6/Extension (discovered 3 exits: *Fac x2 / *Cet) -6/Cetus (discovered 2 exits: *Fac / [*Arc]) -6/Archives (discovered 3 exits: *Fac / *Hub x2) -6/Hub_04(d) (discovered 4 exits: *Fac x4) -5/Factory -4/Factory (discovered 1 exit: [*Res]) History --------- Turn | Location | Event 32 | -11/Scrapyard | Discovered new exit (range 15) 196 | -11/Scrapyard | Entered Materials 311 | -10/Materials | Build established: Mutant 414 | -10/Materials | Discovered new exit (range 11) 1002 | -10/Materials | Discovered new exit (range 13) 1137 | -10/Materials | Central database locked down 1210 | -10/Materials | Discovered new exit (range 13) 1740 | -10/Materials | Discovered new exit (range 16) 2055 | -10/Materials | Discovered new exit (range 3) 2227 | -10/Materials | Identified exit to Mines 2941 | -10/Materials | Repaired Imp. Light Cannon 3584 | -10/Materials | Discovered new exit (range 12) 3619 | -10/Materials | Entered Subcaves 3929 | -10/Subcaves | Visited Clippyterm 4216 | -10/Subcaves | A swath of the cavern ceiling suddenly collapsed 4615 | -10/Subcaves | Core integrity fell below 50% 4657 | -10/Subcaves | Shifting Twisted Machinery released Scrap Shield 4836 | -10/Subcaves | Shifting Twisted Machinery released Piercing Trap 4886 | -10/Subcaves | Discovered new exit (range 5) 5213 | -10/Subcaves | Build established: Subdweller-Mutant 5702 | -10/Subcaves | Core integrity fell below 20% 5934 | -10/Subcaves | Entered Materials 5934 | -8/Materials | Evolved 4 slots: Propulsion x1, Utility x3 5975 | -8/Materials | Repaired Rnf. Ion Engine 6009 | -8/Materials | Repaired Multitool 6303 | -8/Materials | Repaired Lgt. Treads 6859 | -8/Materials | Build established: Scavenger-Mutant 7273 | -8/Materials | Build established: Mutant 7626 | -8/Materials | Discovered new exit (range 16) 7749 | -8/Materials | Entered Factory 7749 | -7/Factory | Evolved 2 slots: Propulsion x1, Utility x1 8004 | -7/Factory | Sucked down chute 8004 | -7/Factory | Entered Waste 8020 | -7/Waste | Spotted C-40 Crusher 8036 | -7/Waste | Spotted C-40 Crusher 8052 | -7/Waste | Spotted C-40 Crusher 8090 | -7/Waste | Crushed by Compactor (1 part destroyed, 2 dropped) 8090 | -7/Waste | Released all parts (10) 8114 | -7/Waste | Spotted C-40 Crusher 8119 | -7/Waste | Discovered new exit (range 16) 8121 | -7/Waste | Spotted C-40 Crusher 8127 | -7/Waste | Entered Factory 9108 | -7/Factory | Discovered new exit (range 14) 9143 | -7/Factory | Identified exit to Factory 9393 | -7/Factory | Cargo convoy interrupted 9595 | -7/Factory | Noticed a derelict Sapper rigging charges 10433 | -7/Factory | Repaired Imp. Treads 10613 | -7/Factory | Identified exit to Storage 10613 | -7/Factory | Identified exit to Lower Caves 10771 | -7/Factory | Lost 4 parts (2n2u) 11925 | -7/Factory | Central database locked down 12170 | -7/Factory | First assault squad dispatched 12175 | -7/Factory | System corruption reached 10% 12245 | -7/Factory | Fabricated Hvy. Assault Cannon (x1) 12313 | -7/Factory | Build established: Scavenger-Mutant 12627 | -7/Factory | Repaired Huge Storage Unit 12760 | -7/Factory | Build established: Mutant 13002 | -7/Factory | Entered Lower Caves 13041 | -7/Lower Caves | Core integrity fell below 50% 13318 | -7/Lower Caves | Attracted the attention of an 0b10 checkpoint 13408 | -7/Lower Caves | Learned Factory emergency access door positions 13776 | -7/Lower Caves | Encountered a Warlord checkpoint 13890 | -7/Lower Caves | Learned location of 1 exit from Factory 14114 | -7/Lower Caves | Spotted B-75 Beast 14881 | -7/Lower Caves | Learned 4 Factory zone layouts 15126 | -7/Lower Caves | Discovered new exit (range 14) 15425 | -7/Lower Caves | Entered another Lower Caves area 15540 | -7/Lower Caves | Discovered exit to Factory (range 12) 16037 | -7/Lower Caves | Attracted the attention of an 0b10 checkpoint 16637 | -7/Lower Caves | Discovered new exit (range 19) 16816 | -7/Lower Caves | Entered Data Miner 16817 | -7/Data Miner | Discovered new exit (range 6) 16841 | -7/Data Miner | Met Data Miner 16875 | -7/Data Miner | Learned location of Section 7 (-2) 16875 | -7/Data Miner | Acquired the access code to Warlord's prototype stash 16902 | -7/Data Miner | Received God Mode back door access code from Data Miner 16966 | -7/Data Miner | Entered Proximity Caves 17324 | -6/Proximity Caves | Attracted the attention of an 0b10 outpost 18153 | -6/Proximity Caves | Spotted B-75 Beast 18374 | -6/Proximity Caves | Discovered exit to Factory (range 14) 18474 | -6/Proximity Caves | Learned 4 Factory zone layouts 18865 | -6/Proximity Caves | Entered Factory 18865 | -6/Factory | Evolved 2 slots: Utility x2 18866 | -6/Factory | Identified exit to Extension 18867 | -6/Factory | Identified exit to Lower Caves 18868 | -6/Factory | Identified exit to Factory 18952 | -6/Factory | Fabricated Hvy. Treads (x2) 19203 | -6/Factory | Build established: Hacker-Mutant 19416 | -6/Factory | Repaired Broken Multitool 19979 | -6/Factory | System corruption reached 10% 20012 | -6/Factory | Destroyed 7 combat bots 20083 | -6/Factory | Imp. Hacking Suite fried by hacking feedback 20105 | -6/Factory | Repaired Hrd. Heavy Armor Plating 21319 | -6/Factory | Fabricated Hvy. Treads (x2) 21593 | -6/Factory | Discovered exit to Extension (range 19) 21665 | -6/Factory | First assault squad dispatched 21705 | -6/Factory | Entered Extension 21783 | -6/Extension | Rescued a captive Derelict 21784 | -6/Extension | Rescued a captive Derelict 21948 | -6/Extension | Rescued a captive Derelict 22030 | -6/Extension | Lost 3 allies 22601 | -6/Extension | Build established: Commander-Mutant 22637 | -6/Extension | Spotted B-75 Beast 22660 | -6/Extension | Allies destroyed B-75 Beast 22666 | -6/Extension | Spotted B-75 Beast 22672 | -6/Extension | Destroyed B-75 Beast 22797 | -6/Extension | Energy Cycler disabled 22797 | -6/Extension | Discovered exit to Factory (range 18) 22798 | -6/Extension | Rescued a captive Derelict 22799 | -6/Extension | Rescued a captive Derelict 22799 | -6/Extension | Rescued a captive Derelict 22800 | -6/Extension | Rescued a captive Derelict 22801 | -6/Extension | Rescued a captive Derelict 22802 | -6/Extension | Rescued a captive Derelict 22802 | -6/Extension | Rescued a captive Derelict 22802 | -6/Extension | Rescued a captive Derelict 22803 | -6/Extension | Rescued a captive Derelict 22803 | -6/Extension | Rescued a captive Derelict 22897 | -6/Extension | Rescued A7 23113 | -6/Extension | Discovered exit to Factory (range 10) 23117 | -6/Extension | Discovered new exit (range 6) 23211 | -6/Extension | Entered Cetus 23211 | -6/Cetus | Accompanied by 21 allies (A7) 23216 | -6/Cetus | Acquired a Cetus Manufacturing Module code from A7 23227 | -6/Cetus | Spotted Cetus Guard 23227 | -6/Cetus | Spotted Cetus Guard 23228 | -6/Cetus | Spotted Cetus Guard 23231 | -6/Cetus | Spotted Cetus Guard 23246 | -6/Cetus | Allies destroyed Cetus Guard 23249 | -6/Cetus | Allies destroyed Cetus Guard 23249 | -6/Cetus | Allies destroyed Cetus Guard 23253 | -6/Cetus | Allies destroyed Cetus Guard 23281 | -6/Cetus | Lost 7 allies 23330 | -6/Cetus | Started Cetus Manufacturing Module 23355 | -6/Cetus | Manufactured an Enhanced Grunt 23380 | -6/Cetus | Manufactured an Enhanced Grunt 23405 | -6/Cetus | Manufactured an Enhanced Grunt 23430 | -6/Cetus | Manufactured an Enhanced Grunt 23455 | -6/Cetus | Manufactured an Enhanced Grunt 23509 | -6/Cetus | Discovered new exit (range 22) 23541 | -6/Cetus | Spotted Cetus Guard 23542 | -6/Cetus | Spotted Cetus Guard 23543 | -6/Cetus | Spotted Cetus Guard 23550 | -6/Cetus | Allies destroyed Cetus Guard 23550 | -6/Cetus | Spotted Cetus Guard 23551 | -6/Cetus | Discovered exit to Factory (range 22) 23562 | -6/Cetus | Destroyed Cetus Guard 23566 | -6/Cetus | Allies destroyed Cetus Guard 23571 | -6/Cetus | Allies destroyed Cetus Guard 23577 | -6/Cetus | Met Revision 17 23578 | -6/Cetus | Found Prototype Device 23578 | -6/Cetus | Identified Exp. Thermal Shield 23599 | -6/Cetus | Lost 10 allies 23754 | -6/Cetus | Murdered A7 23754 | -6/Cetus | Destroyed A7 23763 | -6/Cetus | Extracted ID and sensor layout for unrecognized location from A7's data core 23767 | -6/Cetus | Found Prototype Protection 23767 | -6/Cetus | Identified Med. Regenerative Plating 23969 | -6/Cetus | Entered Archives 23969 | -6/Archives | Accompanied by 7 allies 24010 | -6/Archives | Discovered new exit (range 22) 24063 | -6/Archives | Build established: Scavenger-Mutant 24173 | -6/Archives | Discovered new exit (range 22) 24221 | -6/Archives | Discovered exit to Factory (range 19) 24666 | -6/Archives | Entered Hub_04(d) 24666 | -6/Hub_04(d) | Accompanied by 5 allies 25404 | -6/Hub_04(d) | Network Hub disabled 25404 | -6/Hub_04(d) | Network Hub disabled 25405 | -6/Hub_04(d) | Spotted Lightning 25406 | -6/Hub_04(d) | Spotted Lightning 25406 | -6/Hub_04(d) | Spotted Lightning 25407 | -6/Hub_04(d) | Spotted Lightning 25407 | -6/Hub_04(d) | Spotted Lightning 25407 | -6/Hub_04(d) | Spotted Lightning 25417 | -6/Hub_04(d) | Entered Factory 25417 | -5/Factory | Evolved 2 slots: Power x1, Utility x1 25861 | -5/Factory | Found Powered Armor 26274 | -5/Factory | Spotted B-75 Beast 26315 | -5/Factory | Destroyed B-75 Beast 26621 | -5/Factory | Repaired Centrium Heavy Treads? 26631 | -5/Factory | Cargo convoy interrupted 26642 | -5/Factory | Garrison activated, responded to threat 26666 | -5/Factory | Destroyed 8 combat bots 26670 | -5/Factory | Lost 3 parts (1p2u) 26910 | -5/Factory | Lost 3 parts (1p2n) 26917 | -5/Factory | First assault squad dispatched 27286 | -5/Factory | Garrison activated, responded to threat 27621 | -5/Factory | Destroyed 7 combat bots 27864 | -5/Factory | High security lockdown imminent 27877 | -5/Factory | System corruption reached 10% 27944 | -5/Factory | High security lockdown engaged 27961 | -5/Factory | Discovered new exit (range 22) 28006 | -5/Factory | Entered another Factory area 28006 | -4/Factory | Evolved 2 slots: Utility x2 28107 | -4/Factory | Lost 5 parts (2n3u) 28148 | -4/Factory | Discovered new exit (range 17) 28469 | -4/Factory | Found Quantum Capacitor 28506 | -4/Factory | First assault squad dispatched 28566 | -4/Factory | Incoming assault squad redirected 28573 | -4/Factory | Core integrity fell below 50% 28582 | -4/Factory | Core integrity fell below 20% 28586 | -4/Factory | Destroyed by G-67 Veteran with Field Laser Last Messages --------------- 28566_ ALERT: Higher priority target reported, redirecting assault. 28566_ Critical hit (Burn: +37). 28566_ Adv. Coolant Injector destroyed. 28566_ Cld. Plasma Cannon destroyed. 28568_ Quantum Capacitor destroyed. 28569_ Seismic Detector destroyed. 28570_ G-67 Veteran misfires. 28572_ Huge Storage Unit destroyed. 28575_ G-67 Veteran destroyed. 28577_ Slammed into G-73 Enforcer. 28578_ Acquired 58 matter. 28578_ Slammed into G-73 Enforcer. 28579_ Destabilizing: System corrupted (+1). 28580_ Slammed into G-73 Enforcer. 28582_ M-28 Smith repairs G-67 Veteran. 28582_ Slammed into G-73 Enforcer. 28584_ Critical hit (Burn: +37). 28584_ Slammed into G-73 Enforcer. 28585_ Enh. Optical Array destroyed. 28585_ System corrupted by crushing effect (+5). Map ----- +----------------------------------------------------+ | ????????????###### T#######+########## # * % | | ?????????????????????# = #??# #####+# | | ?????????????????????# #??# %[ | | ?????????????????????# #??# % | | ?????????????????????# #??# | | ?????????????????????# """" """" #??# | | ?????????????????????# """" """" #??# | | ?????????????????????# """" """" #??# | ####### | | ?????????????????????# """" """" #??#% % #?????? | | ?????????????????????# """" """" #??# =! #?????? | | ?????????????????????# """" """"!!#??# #?????? | | ?????????????????????# #??#=%| #?????? | | ?????????????????????# #??# * #?????? | | ?????????????????????#######/######### ###???? | | ???????????????????????????# ####### #???? | | ???????????????????????????# # ! !## #???? | | ???????????????????????????# #[[! ## #???? | | ???????????????????????????# #] ## #???? | | ???????????????????????????# # ## < #???? | | ???????????????????????????# # ## #???? | | ???????????????????????????# + ## #???? | | ???????????????????????????# # ## #???? | | ???? ##+################# # ## #???? | | ???? % + ######+#######?? | | ??? g g ###### ] #?? | | ??? mg @g ; # #?? | | ??? g m [%![ # """"""" #?? | | ?????????############;;; =*=[![[# """"""" #?? | | ???????????????# !]|=[![ # """"""" #?? | | ???????????????# [ !]!![[ # """"""" #?? | | ???????????????# [![]![ # #?? | | ???????????????# = *%! ! # """"""" #?? | | ???????????????# g; # """"""" #?? | | ???????????????# ! ;;; # """"""" #?? | | ???????????????# ########?""""""" #?? | | ???????????????#############??????# #?? | | ??????????????????????????????????##############?? | | | | | | | | | | | | | | | | | | | | | | | | | | | +----------------------------------------------------+ Best States ------------- Heat Dissipation 128 Coolant Potential 100 Energy Generation 37 Energy Capacity 1040 Matter Stores 300 Matter Capacity 300 Sight Range 22 Terrain Scan Density 10 Jamming Range 14 Armor Coverage 1800 Resistance: KI 30 Resistance: TH 30 Resistance: EM 15 Weapon Cycling 15 Evasion (%) 50 Recoil Reduction 4 Offensive Hacking 22 Defensive Hacking 12 Authchip Count 1 Item Schematics ----------------- Huge Storage Unit | -10/Materials | Hacked Hvy. Assault Cannon | -7/Factory | Hacked Imp. Coolant Injector | -7/Factory | Hacked Combat Drone Bay | -7/Data Miner | Free Lgt. Regenerative Plating | -7/Data Miner | Free Cld. Cesium-ion Thruster | -7/Data Miner | Free Exp. Weapon Shielding | -7/Data Miner | Free Com. Ion Cannon | -7/Data Miner | Free Hvy. Treads | -7/Data Miner | Free Adv. Drone Bay | -7/Data Miner | Free Hvy. Phase Cannon | -7/Data Miner | Free Imp. Component Analysis Suite | -7/Data Miner | Free Imp. Fusion Compressor | -7/Data Miner | Free Multitool | -6/Factory | Scanalyzed Robot Schematics ------------------ G-50 Soldier | -7/Data Miner | Free X-62 Marksman | -7/Data Miner | Free B-48 Gladiator | -7/Data Miner | Free Y-54 Guardian | -7/Data Miner | Free I-47 Archangel | -7/Data Miner | Free Fabricated ------------ Hvy. Assault Cannon | x1 | -7/Factory Hvy. Treads | x2 | -6/Factory Hvy. Treads | x2 | -6/Factory Alien Tech Used ----------------- None Achievements -------------- None Challenges ------------ None Game ------ Seed ServoTargetingSheargun Manual? 0 Play Time 03:10:17 Cumulative 134.1 hours Start 2024.06.01 @ 03:05:09 End 2024.06.02 @ 21:35:13 Sessions 17 Manual Loads 0 Difficulty Rogue Special Mode None Game No. 27 Rogue 26 Adventurer 1 Explorer 0 Win Type - Total 11 Types 3/2/4/0/0/0/2/0/0 Lore% 51 Gallery% 72 Achievement% 63 Wizard Run 0 Options --------- Layout 0 ASCII 0 Keyboard 0 Movement Mouse Keybinds 0 Fullscreen 1 Font 18/Terminus Map View 76x50 Zoom Use 0% Tactical HUD 1 Map Filters NONE Filters NONE Steam 0 RUN: 858f53b3-4719-4b02-b6d4-7c57ad783a6f